[Event "85th Southwest Open 2019"]
[Site "Dallas"]
[Date "2019.09.02"]
[Round "8.4"]
[White "Wang, Justin"]
[Black "Shtembuliak, Evgeny"]
[Result "0-1"]
[ECO "B08"]
[WhiteElo "2449"]
[BlackElo "2548"]
[Annotator "ChessBase"]
[PlyCount "90"]
[EventDate "2019.08.29"]
[EventType "swiss"]
[EventCountry "USA"]
[SourceTitle "playchess.com"]
[Source "ChessBase"]
[SourceQuality "1"]
[TimeControl "5400+30"]

1. e4 {[%emt 0:04:28]} d6 {[%emt 0:00:27]} 2. d4 {[%emt 0:00:31]} Nf6 {[%emt 0:00:05]} 3. Nc3 {[%emt 0:00:04]} g6 {[%emt 0:00:06]} 4. Nf3 {[%emt 0:00:46]} Bg7 {[%emt 0:00:05]} 5. Be2 {[%emt 0:00:07]} O-O {[%emt 0:00:04]} 6. O-O {[%emt 0:00:08]} a6 {[%emt 0:00:03]} 7. a3 {[%emt 0:02:30]} Nc6 {[%emt 0:02:40]} 8. Bg5 {[%emt 0:02:41]} Bg4 {[%emt 0:04:18]} 9. d5 {[%emt 0:03:24]} Bxf3 {[%emt 0:00:27]} 10. Bxf3 {[%emt 0:00:16]} Ne5 {[%emt 0:00:05]} 11. Be2 {[%emt 0:03:02]} c6 {[%emt 0:01:01]} 12. Be3 {[%emt 0:03:50]} cxd5 {[%emt 0:02:26]} 13. exd5 {[%emt 0:03:05]} Rc8 {[%emt 0:15:31]} 14. Bd4 {[%emt 0:00:22]} Qc7 {[%emt 0:08:55]} 15. Re1 {[%emt 0:01:13]} Rfe8 {[%emt 0:01:26]} 16. Bf1 {[%emt 0:02:54]} Nfd7 {[%emt 0:02:25]} 17. Rb1 {[%emt 0:11:13]} Bf6 {[%emt 0:24:57]} 18. Re4 {[%emt 0:03:59]} Nc5 {[%emt 0:04:32]} 19. Re3 {[%emt 0:00:48]} b5 {[%emt 0:00:06]} 20. Rh3 {[%emt 0:02:45]} Qb7 {[%emt 0:11:51]} 21. Qd2 {[%emt 0:03:33]} b4 {[%emt 0:01:39]} 22. axb4 {[%emt 0:03:33]} Qxb4 {[%emt 0:00:02]} 23. Bxe5 {[%emt 0:00:47]} Bxe5 {[%emt 0:02:01]} 24. Qh6 {[%emt 0:00:21]} Nd7 {[%emt 0:03:28]} 25. Qxh7+ {[%emt 0:00:35]} Kf8 {[%emt 0:00:02]} 26. Rh4 {[%emt 0:07:13]} Qb6 {[%emt 0:00:42]} 27. Ne4 {[%emt 0:03:03]} Rxc2 {[%emt 0:02:23]} 28. Bd3 {[%emt 0:02:23]} Rxb2 {[%emt 0:00:04]} 29. Rf1 {[%emt 0:00:56]} Bg7 {[%emt 0:01:21]} 30. Rf4 {[%emt 0:03:14]} Nf6 {[%emt 0:00:26]} 31. Qh4 {[%emt 0:00:58]} a5 {[%emt 0:02:11]} 32. Ng5 {[%emt 0:01:11]} Rb4 {[%emt 0:00:16]} 33. Nxf7 {[%emt 0:09:18]} Rxf4 {[%emt 0:04:18]} 34. Qxf4 {[%emt 0:00:04]} Kxf7 {[%emt 0:00:06]} 35. Qg3 {[%emt 0:01:18]} Ra8 {[%emt 0:00:52]} 36. Bxg6+ {[%emt 0:00:47]} Kf8 {[%emt 0:00:15]} 37. Re1 {[%emt 0:02:15]} Qd4 {[%emt 0:01:21]} 38. Qh3 {[%emt 0:04:26]} Qxd5 {[%emt 0:00:56]} 39. g4 {[%emt 0:00:19]} Qd2 {[%emt 0:02:30]} 40. Re3 {[%emt 0:00:11]} Qd1+ {[%emt 0:00:26]} 41. Kg2 {[%emt 0:00:34]} Qxg4+ {[%emt 0:00:11]} 42. Qxg4 {[%emt 0:00:54]} Nxg4 {[%emt 0:00:02]} 43. Rh3 {[%emt 0:00:14]} a4 {[%emt 0:00:40]} 44. Bf5 {[%emt 0:00:20]} a3 {[%emt 0:00:20]} 45. Rf3 {[%emt 0:00:21]} Ne5 {[%emt 0:00:17]} 0-1

[Event "85th Southwest Open 2019"]
[Site "Dallas"]
[Date "2019.09.02"]
[Round "8.6"]
[White "Berczes, David"]
[Black "Beradze, Irakli"]
[Result "0-1"]
[ECO "A09"]
[WhiteElo "2488"]
[BlackElo "2493"]
[Annotator "RC"]
[PlyCount "62"]
[EventDate "2019.08.29"]
[EventType "swiss"]
[EventCountry "USA"]
[SourceTitle "playchess.com"]
[Source "ChessBase"]
[SourceQuality "1"]
[TimeControl "5400+30"]

1. Nf3 {[%emt 0:00:00]} d5 {[%emt 0:00:00]} 2. c4 {[%emt 0:00:00]} d4 {[%emt 0:04:41]} 3. b4 {[%emt 0:00:00]} f6 {[%emt 0:00:50]} 4. e3 {[%emt 0:00:00]} dxe3 {[%emt 0:02:33]} 5. fxe3 {[%emt 0:00:05]} e5 {[%emt 0:00:04]} 6. c5 {[%emt 0:00:47]} a5 {[%emt 0:08:56]} 7. Bb5+ {[%emt 0:29:20]} Bd7 {[%emt 0:22:48]} 8. Bc4 {[%emt 0:14:49]} axb4 {[%emt 0:04:55]} 9. O-O {[%emt 0:12:02]} Qe7 {[%emt 0:05:25]} 10. d4 {[%emt 0:03:16]} Nc6 {[%emt 0:00:19]} 11. a3 {[%emt 0:03:13]} e4 {[%emt 0:05:18]} 12. Nfd2 {[%emt 0:04:41]} f5 {[%emt 0:08:37]} 13. Bb2 {[%emt 0:07:05]} Nf6 {[%emt 0:00:49]} 14. axb4 {[%emt 0:11:59]} Rxa1 {[%emt 0:01:19]} 15. Bxa1 {[%emt 0:00:04]} Ng4 {[%emt 0:07:17]} 16. Qe1 {[%emt 0:01:08]} Nxb4 {[%emt 0:02:37]} 17. Na3 {[%emt 0:00:12]} Qg5 {[%emt 0:05:09]} 18. Rf4 {[%emt 0:00:41]} Be7 {[%emt 0:00:15]} 19. Bc3 {[%emt 0:07:40]} Nd3 {[%emt 0:01:03]} 20. Bxd3 {[%emt 0:00:18]} exd3 {[%emt 0:00:04]} 21. Nac4 {[%emt 0:01:35]} O-O {[%emt 0:04:54]} 22. h3 {[%emt 0:01:24]} Nf6 {[%emt 0:00:09]} 23. Ne5 {[%emt 0:00:40]} Be6 {[%emt 0:00:59]} 24. Bb2 {[%emt 0:00:26]} Nd5 {[%emt 0:00:39]} 25. Rf3 {[%emt 0:00:03]} f4 {[%emt 0:00:36]} 26. Ne4 {[%emt 0:00:51]} d2 {[%emt 0:01:28]} 27. Qe2 {[%emt 0:00:38]} Qh4 {[%emt 0:03:34]} 28. Nxd2 {[%emt 0:00:19]} Nxe3 {[%emt 0:00:33]} 29. Ndc4 {[%emt 0:00:30]} Nxc4 {[%emt 0:00:57]} 30. Nxc4 {[%emt 0:00:04]} Bd5 {[%emt 0:00:03]} 31. Rf1 {[%emt 0:00:35]} f3 {[%emt 0:00:25]} 0-1

[Event "85th Southwest Open 2019"]
[Site "Dallas"]
[Date "2019.09.02"]
[Round "8.7"]
[White "Javakhadze, Zurab"]
[Black "Popilski, Gil"]
[Result "1/2-1/2"]
[ECO "D27"]
[WhiteElo "2441"]
[BlackElo "2468"]
[Annotator "ChessBase"]
[PlyCount "72"]
[EventDate "2019.08.29"]
[EventType "swiss"]
[EventCountry "USA"]
[SourceTitle "playchess.com"]
[Source "ChessBase"]
[SourceQuality "1"]
[TimeControl "5400+30"]

1. d4 {[%emt 0:01:34]} d5 {[%emt 0:02:00]} 2. c4 {[%emt 0:01:27]} dxc4 {[%emt 0:00:09]} 3. e3 {[%emt 0:03:50]} Nf6 {[%emt 0:00:56]} 4. Nf3 {[%emt 0:00:42]} e6 {[%emt 0:00:13]} 5. Bxc4 {[%emt 0:00:06]} c5 {[%emt 0:00:04]} 6. O-O {[%emt 0:00:22]} a6 {[%emt 0:00:04]} 7. dxc5 {[%emt 0:01:10]} Bxc5 {[%emt 0:00:23]} 8. Qxd8+ {[%emt 0:01:38]} Kxd8 {[%emt 0:00:03]} 9. a3 {[%emt 0:00:51]} Ke7 {[%emt 0:00:47]} 10. b4 {[%emt 0:01:25]} Bd6 {[%emt 0:00:10]} 11. Bb2 {[%emt 0:00:08]} Nbd7 {[%emt 0:00:17]} 12. Nbd2 {[%emt 0:01:21]} b5 {[%emt 0:00:07]} 13. Be2 {[%emt 0:02:52]} Bb7 {[%emt 0:00:10]} 14. Rac1 {[%emt 0:01:43]} Rhc8 {[%emt 0:00:44]} 15. Nb3 {[%emt 0:02:10]} Rxc1 {[%emt 0:02:56]} 16. Rxc1 {[%emt 0:03:03]} Rc8 {[%emt 0:00:04]} 17. Rxc8 {[%emt 0:00:57]} Bxc8 {[%emt 0:00:02]} 18. Nfd4 {[%emt 0:02:42]} Nb6 {[%emt 0:01:46]} 19. f3 {[%emt 0:02:16]} Nfd5 {[%emt 0:04:58]} 20. Kf2 {[%emt 0:01:11]} f6 {[%emt 0:04:23]} 21. e4 {[%emt 0:01:52]} Nf4 {[%emt 0:00:07]} 22. Bf1 {[%emt 0:00:30]} e5 {[%emt 0:00:26]} 23. Nc6+ {[%emt 0:00:28]} Ke8 {[%emt 0:00:28]} 24. g3 {[%emt 0:00:21]} Ng6 {[%emt 0:00:50]} 25. Bc1 {[%emt 0:01:00]} Ne7 {[%emt 0:00:24]} 26. Nxe7 {[%emt 0:00:24]} Kxe7 {[%emt 0:00:20]} 27. Be3 {[%emt 0:00:39]} Nc4 {[%emt 0:00:40]} 28. Bxc4 {[%emt 0:01:16]} bxc4 {[%emt 0:00:02]} 29. Nc5 {[%emt 0:00:47]} Bxc5 {[%emt 0:00:06]} 30. bxc5 {[%emt 0:00:46]} Kd7 {[%emt 0:00:23]} 31. Ke2 {[%emt 0:00:12]} Kc6 {[%emt 0:00:07]} 32. Kd2 {[%emt 0:01:58]} Bh3 {[%emt 0:01:06]} 33. Kc3 {[%emt 0:00:18]} Bg2 {[%emt 0:00:40]} 34. f4 {[%emt 0:00:09]} exf4 {[%emt 0:00:11]} 35. gxf4 {[%emt 0:00:08]} Bxe4 {[%emt 0:00:07]} 36. Kxc4 {[%emt 0:00:08]} Bf5 {[%emt 0:00:05]} 1/2-1/2

[Event "85th Southwest Open 2019"]
[Site "Dallas"]
[Date "2019.09.02"]
[Round "8.8"]
[White "Mishra, Abhimanyu"]
[Black "Sorokin, Aleksey"]
[Result "0-1"]
[ECO "B12"]
[WhiteElo "2377"]
[BlackElo "2514"]
[Annotator "ChessBase"]
[PlyCount "174"]
[EventDate "2019.08.29"]
[EventType "swiss"]
[EventCountry "USA"]
[SourceTitle "playchess.com"]
[Source "ChessBase"]
[SourceQuality "1"]
[TimeControl "5400+30"]

1. e4 {[%emt 0:00:23]} c6 {[%emt 0:00:03]} 2. d4 {[%emt 0:00:02]} d5 {[%emt 0:00:11]} 3. e5 {[%emt 0:00:01]} Bf5 {[%emt 0:00:10]} 4. Nf3 {[%emt 0:00:02]} e6 {[%emt 0:00:24]} 5. Be2 {[%emt 0:00:03]} Ne7 {[%emt 0:00:09]} 6. O-O {[%emt 0:01:05]} c5 {[%emt 0:00:10]} 7. Be3 {[%emt 0:06:11]} Nec6 {[%emt 0:02:25]} 8. c4 {[%emt 0:14:51]} dxc4 {[%emt 0:00:45]} 9. Bxc4 {[%emt 0:01:55]} cxd4 {[%emt 0:01:10]} 10. Nxd4 {[%emt 0:06:21]} Nxd4 {[%emt 0:00:33]} 11. Bxd4 {[%emt 0:01:43]} a6 {[%emt 0:04:34]} 12. Bc3 {[%emt 0:03:55]} Nc6 {[%emt 0:01:01]} 13. a3 {[%emt 0:02:37]} Bc5 {[%emt 0:01:30]} 14. Nd2 {[%emt 0:04:07]} Bd4 {[%emt 0:03:09]} 15. Re1 {[%emt 0:07:15]} Bxc3 {[%emt 0:02:36]} 16. bxc3 {[%emt 0:00:06]} O-O {[%emt 0:01:22]} 17. Nf3 {[%emt 0:05:52]} Bg4 {[%emt 0:00:51]} 18. Bd3 {[%emt 0:04:53]} Rc8 {[%emt 0:01:59]} 19. Be4 {[%emt 0:05:32]} Bxf3 {[%emt 0:01:10]} 20. Qxf3 {[%emt 0:03:09]} g6 {[%emt 0:00:13]} 21. Qf4 {[%emt 0:03:22]} Qc7 {[%emt 0:01:55]} 22. Bf3 {[%emt 0:03:28]} Na5 {[%emt 0:01:22]} 23. Rac1 {[%emt 0:02:52]} Nc4 {[%emt 0:01:45]} 24. a4 {[%emt 0:01:02]} f6 {[%emt 0:01:48]} 25. Qg4 {[%emt 0:01:19]} f5 {[%emt 0:01:04]} 26. Qf4 {[%emt 0:00:43]} Rfd8 {[%emt 0:01:33]} 27. Rb1 {[%emt 0:03:14]} b6 {[%emt 0:02:16]} 28. Be2 {[%emt 0:01:13]} Nd2 {[%emt 0:00:18]} 29. Rbd1 {[%emt 0:02:58]} Ne4 {[%emt 0:01:15]} 30. Bxa6 {[%emt 0:02:03]} Rxd1 {[%emt 0:00:06]} 31. Rxd1 {[%emt 0:00:02]} Rd8 {[%emt 0:00:06]} 32. Rxd8+ {[%emt 0:02:20]} Qxd8 {[%emt 0:00:05]} 33. Qe3 {[%emt 0:05:01]} Qc7 {[%emt 0:01:59]} 34. Qd4 {[%emt 0:00:56]} Kf7 {[%emt 0:01:52]} 35. Bc4 {[%emt 0:03:47]} Nc5 {[%emt 0:00:10]} 36. Bb5 {[%emt 0:01:47]} h6 {[%emt 0:00:56]} 37. f3 {[%emt 0:00:53]} Nb3 {[%emt 0:01:07]} 38. Qd6 {[%emt 0:01:08]} Qxd6 {[%emt 0:03:22]} 39. exd6 {[%emt 0:00:03]} g5 {[%emt 0:01:06]} 40. Kf2 {[%emt 0:01:05]} Nc5 {[%emt 0:00:31]} 41. Ke3 {[%emt 0:00:31]} e5 {[%emt 0:00:10]} 42. c4 {[%emt 0:00:29]} Ke6 {[%emt 0:00:46]} 43. d7 {[%emt 0:00:21]} Ke7 {[%emt 0:02:26]} 44. Bc6 {[%emt 0:00:25]} Kd8 {[%emt 0:01:04]} 45. g4 {[%emt 0:00:36]} f4+ {[%emt 0:00:28]} 46. Kd2 {[%emt 0:00:17]} Kc7 {[%emt 0:02:50]} 47. Kc3 {[%emt 0:00:43]} Nxd7 {[%emt 0:01:37]} 48. Bd5 {[%emt 0:00:35]} Kd6 {[%emt 0:02:10]} 49. h3 {[%emt 0:00:33]} Kc5 {[%emt 0:01:08]} 50. Be6 {[%emt 0:00:31]} Nf6 {[%emt 0:00:32]} 51. Bf5 {[%emt 0:00:28]} Ne8 {[%emt 0:00:53]} 52. Be4 {[%emt 0:00:22]} Nc7 {[%emt 0:00:44]} 53. Bf5 {[%emt 0:00:35]} Na6 {[%emt 0:00:37]} 54. Be4 {[%emt 0:00:28]} Nb4 {[%emt 0:01:24]} 55. Bb1 {[%emt 0:00:31]} Nc6 {[%emt 0:00:46]} 56. Be4 {[%emt 0:00:23]} Nd4 {[%emt 0:00:32]} 57. Bd5 {[%emt 0:00:39]} Ne2+ {[%emt 0:01:10]} 58. Kd2 {[%emt 0:00:26]} Ng3 {[%emt 0:00:33]} 59. Kd3 {[%emt 0:00:38]} Kd6 {[%emt 0:01:18]} 60. Bb7 {[%emt 0:00:30]} Nf1 {[%emt 0:01:22]} 61. Ke2 {[%emt 0:00:23]} Ne3 {[%emt 0:00:48]} 62. Kd3 {[%emt 0:00:08]} Nd1 {[%emt 0:00:37]} 63. Kc2 {[%emt 0:00:25]} Nf2 {[%emt 0:00:12]} 64. Kd2 {[%emt 0:00:17]} Kc5 {[%emt 0:00:19]} 65. Ke2 {[%emt 0:00:31]} Nh1 {[%emt 0:00:53]} 66. Kd3 {[%emt 0:00:08]} Ng3 {[%emt 0:00:32]} 67. Bd5 {[%emt 0:00:27]} Nf1 {[%emt 0:01:12]} 68. Bb7 {[%emt 0:00:19]} Ne3 {[%emt 0:00:31]} 69. Ba6 {[%emt 0:00:18]} Kc6 {[%emt 0:01:30]} 70. Ke4 {[%emt 0:00:53]} Kd6 {[%emt 0:00:20]} 71. Kd3 {[%emt 0:00:40]} Nd1 {[%emt 0:00:46]} 72. Kd2 {[%emt 0:01:07]} Nb2 {[%emt 0:06:46]} 73. Bb5 {[%emt 0:00:23]} Kc5 {[%emt 0:00:27]} 74. Kc3 {[%emt 0:00:07]} Nd1+ {[%emt 0:06:04]} 75. Kd2 {[%emt 0:00:30]} Ne3 {[%emt 0:00:20]} 76. Kd3 {[%emt 0:00:37]} Kb4 {[%emt 0:35:12]} 77. Ba6 {[%emt 0:00:57]} Kxa4 {[%emt 0:00:00]} 78. Bb5+ {[%emt 0:00:43]} Kb4 {[%emt 0:00:00]} 79. Ba6 {[%emt 0:00:10]} Kc5 {[%emt 0:00:00]} 80. Bb5 {[%emt 0:00:29]} Nd1 {[%emt 0:00:00]} 81. Kd2 {[%emt 0:00:39]} Nb2 {[%emt 0:00:00]} 82. Kc3 {[%emt 0:00:45]} e4 {[%emt 0:00:00]} 83. fxe4 {[%emt 0:00:23]} f3 {[%emt 0:00:00]} 84. Kd2 {[%emt 0:00:09]} Nxc4+ {[%emt 0:00:00]} 85. Bxc4 {[%emt 0:00:10]} Kxc4 {[%emt 0:00:00]} 86. Ke3 {[%emt 0:00:08]} b5 {[%emt 0:00:00]} 87. Kxf3 {[%emt 0:00:04]} Kd4 {[%emt 0:00:00]} 0-1

[Event "85th Southwest Open 2019"]
[Site "Dallas"]
[Date "2019.09.02"]
[Round "8.9"]
[White "Nguyen, Emily"]
[Black "Drozdowski, Kacper"]
[Result "1/2-1/2"]
[ECO "A84"]
[WhiteElo "2183"]
[BlackElo "2484"]
[Annotator "ChessBase"]
[PlyCount "75"]
[EventDate "2019.08.29"]
[EventType "swiss"]
[EventCountry "USA"]
[SourceTitle "playchess.com"]
[Source "ChessBase"]
[SourceQuality "1"]
[TimeControl "5400+30"]

1. d4 {[%emt 0:06:45]} b6 {[%emt 0:00:00]} 2. Nf3 {[%emt 0:00:07]} Bb7 {[%emt 0:00:00]} 3. g3 {[%emt 0:00:04]} e6 {[%emt 0:00:07]} 4. c4 {[%emt 0:00:27]} f5 {[%emt 0:01:42]} 5. Bg2 {[%emt 0:00:36]} Nf6 {[%emt 0:00:12]} 6. O-O {[%emt 0:01:34]} Na6 {[%emt 0:01:56]} 7. a3 {[%emt 0:05:22]} Be7 {[%emt 0:00:21]} 8. d5 {[%emt 0:06:45]} Nc5 {[%emt 0:01:27]} 9. Nd4 {[%emt 0:13:17]} a5 {[%emt 0:07:10]} 10. dxe6 {[%emt 0:01:38]} Bxg2 {[%emt 0:01:06]} 11. exd7+ {[%emt 0:00:40]} Qxd7 {[%emt 0:00:11]} 12. Kxg2 {[%emt 0:00:03]} Rd8 {[%emt 0:02:52]} 13. e3 {[%emt 0:00:48]} Ne6 {[%emt 0:01:44]} 14. Nc3 {[%emt 0:06:09]} Nxd4 {[%emt 0:04:02]} 15. exd4 {[%emt 0:00:04]} Qxd4 {[%emt 0:00:42]} 16. Qe2 {[%emt 0:00:16]} Qd3 {[%emt 0:03:41]} 17. Qe5 {[%emt 0:18:17]} Qxc4 {[%emt 0:01:34]} 18. Bf4 {[%emt 0:01:02]} Rd7 {[%emt 0:06:16]} 19. Rad1 {[%emt 0:01:42]} Qc6+ {[%emt 0:00:50]} 20. Kg1 {[%emt 0:02:24]} O-O {[%emt 0:01:45]} 21. Rxd7 {[%emt 0:00:41]} Qxd7 {[%emt 0:00:07]} 22. Qxc7 {[%emt 0:00:48]} Qxc7 {[%emt 0:00:40]} 23. Bxc7 {[%emt 0:00:05]} Rc8 {[%emt 0:00:21]} 24. Bxb6 {[%emt 0:02:08]} Bxa3 {[%emt 0:00:07]} 25. bxa3 {[%emt 0:02:40]} Rxc3 {[%emt 0:00:09]} 26. Bxa5 {[%emt 0:00:27]} Rxa3 {[%emt 0:00:02]} 27. Bc7 {[%emt 0:00:45]} Ne4 {[%emt 0:00:16]} 28. h4 {[%emt 0:01:14]} Kf7 {[%emt 0:00:28]} 29. Kg2 {[%emt 0:01:29]} Ra2 {[%emt 0:00:14]} 30. Bb6 {[%emt 0:00:10]} h6 {[%emt 0:01:30]} 31. Be3 {[%emt 0:00:54]} g5 {[%emt 0:00:24]} 32. hxg5 {[%emt 0:00:03]} hxg5 {[%emt 0:00:04]} 33. Rb1 {[%emt 0:00:17]} f4 {[%emt 0:01:18]} 34. gxf4 {[%emt 0:00:05]} gxf4 {[%emt 0:00:03]} 35. Bxf4 {[%emt 0:00:34]} Rxf2+ {[%emt 0:00:11]} 36. Kg1 {[%emt 0:00:04]} Rxf4 {[%emt 0:00:08]} 37. Rf1 {[%emt 0:00:02]} Rxf1+ {[%emt 0:00:09]} 38. Kxf1 {[%emt 0:00:04]} 1/2-1/2

[Event "85th Southwest Open 2019"]
[Site "Dallas"]
[Date "2019.09.02"]
[Round "8.10"]
[White "Arribas Lopez, Angel"]
[Black "Reshef, Omer"]
[Result "1-0"]
[ECO "C72"]
[WhiteElo "2440"]
[BlackElo "2467"]
[Annotator "ChessBase"]
[PlyCount "105"]
[EventDate "2019.08.29"]
[EventType "swiss"]
[EventCountry "USA"]
[SourceTitle "playchess.com"]
[Source "ChessBase"]
[SourceQuality "1"]
[TimeControl "5400+30"]

1. e4 {[%emt 0:00:00]} e5 {[%emt 0:00:00]} 2. Nf3 {[%emt 0:00:01]} Nc6 {[%emt 0:00:00]} 3. Bb5 {[%emt 0:00:17]} a6 {[%emt 0:00:12]} 4. Ba4 {[%emt 0:00:12]} d6 {[%emt 0:00:53]} 5. O-O {[%emt 0:01:27]} g6 {[%emt 0:02:27]} 6. d4 {[%emt 0:00:43]} b5 {[%emt 0:13:55]} 7. Bb3 {[%emt 0:01:00]} Bg7 {[%emt 0:00:20]} 8. dxe5 {[%emt 0:08:41]} dxe5 {[%emt 0:03:56]} 9. Qxd8+ {[%emt 0:00:54]} Nxd8 {[%emt 0:00:19]} 10. a4 {[%emt 0:00:09]} b4 {[%emt 0:07:05]} 11. a5 {[%emt 0:07:32]} Be6 {[%emt 0:02:27]} 12. Ba4+ {[%emt 0:01:25]} Bd7 {[%emt 0:05:53]} 13. Bxd7+ {[%emt 0:01:25]} Kxd7 {[%emt 0:00:03]} 14. Rd1+ {[%emt 0:00:11]} Kc8 {[%emt 0:01:46]} 15. Nbd2 {[%emt 0:04:30]} Nf6 {[%emt 0:05:51]} 16. Re1 {[%emt 0:03:00]} Nc6 {[%emt 0:11:34]} 17. Nb3 {[%emt 0:01:31]} Bf8 {[%emt 0:05:02]} 18. Bg5 {[%emt 0:02:21]} Ne8 {[%emt 0:02:10]} 19. Nfd2 {[%emt 0:04:15]} f6 {[%emt 0:07:26]} 20. Be3 {[%emt 0:01:26]} Nd6 {[%emt 0:00:06]} 21. Bc5 {[%emt 0:06:01]} Nb5 {[%emt 0:00:46]} 22. Be3 {[%emt 0:00:25]} Be7 {[%emt 0:02:45]} 23. Nc4 {[%emt 0:00:09]} Rb8 {[%emt 0:05:08]} 24. Red1 {[%emt 0:01:06]} Nd6 {[%emt 0:00:58]} 25. Nxd6+ {[%emt 0:04:21]} Bxd6 {[%emt 0:00:08]} 26. Rd5 {[%emt 0:00:15]} Ne7 {[%emt 0:03:01]} 27. Rd3 {[%emt 0:00:04]} Rb5 {[%emt 0:00:05]} 28. Rad1 {[%emt 0:00:06]} Kb7 {[%emt 0:06:01]} 29. g4 {[%emt 0:03:53]} Nc6 {[%emt 0:01:04]} 30. Rxd6 {[%emt 0:03:42]} cxd6 {[%emt 0:00:02]} 31. Rxd6 {[%emt 0:00:09]} Nd4 {[%emt 0:09:20]} 32. Nxd4 {[%emt 0:02:34]} exd4 {[%emt 0:00:01]} 33. Bxd4 {[%emt 0:00:10]} Re8 {[%emt 0:00:12]} 34. f3 {[%emt 0:00:34]} f5 {[%emt 0:00:02]} 35. gxf5 {[%emt 0:01:01]} gxf5 {[%emt 0:00:01]} 36. e5 {[%emt 0:00:10]} Rxa5 {[%emt 0:00:52]} 37. Rb6+ {[%emt 0:02:57]} Kc7 {[%emt 0:00:11]} 38. Rxb4 {[%emt 0:00:03]} Ra1+ {[%emt 0:00:48]} 39. Kf2 {[%emt 0:00:46]} Rg8 {[%emt 0:00:37]} 40. Bc3 {[%emt 0:03:45]} Rc1 {[%emt 0:00:44]} 41. Rh4 {[%emt 0:00:06]} f4 {[%emt 0:02:29]} 42. Rxf4 {[%emt 0:00:27]} Rxc2+ {[%emt 0:00:03]} 43. Ke3 {[%emt 0:00:05]} Rxh2 {[%emt 0:00:05]} 44. Rf7+ {[%emt 0:00:30]} Kc6 {[%emt 0:02:29]} 45. Rf6+ {[%emt 0:00:05]} Kb5 {[%emt 0:00:13]} 46. f4 {[%emt 0:01:25]} h5 {[%emt 0:00:12]} 47. Bd4 {[%emt 0:02:09]} Rg3+ {[%emt 0:02:46]} 48. Ke4 {[%emt 0:00:05]} Re2+ {[%emt 0:00:51]} 49. Kd5 {[%emt 0:02:23]} Rd3 {[%emt 0:00:01]} 50. Rb6+ {[%emt 0:00:13]} Ka5 {[%emt 0:00:13]} 51. b4+ {[%emt 0:00:03]} Ka4 {[%emt 0:00:05]} 52. Kc4 {[%emt 0:00:07]} Rxd4+ {[%emt 0:01:43]} 53. Kxd4 {[%emt 0:00:04]} 1-0

[Event "85th Southwest Open 2019"]
[Site "Dallas"]
[Date "2019.09.02"]
[Round "8.13"]
[White "Tsay, Vincent"]
[Black "Bajarani, Ulvi"]
[Result "1-0"]
[ECO "E16"]
[WhiteElo "2233"]
[BlackElo "2501"]
[Annotator "ChessBase"]
[PlyCount "88"]
[EventDate "2019.08.29"]
[EventType "swiss"]
[EventCountry "USA"]
[SourceTitle "playchess.com"]
[Source "ChessBase"]
[SourceQuality "1"]
[TimeControl "5400+30"]

1. d4 {[%emt 0:01:10]} Nf6 {[%emt 0:00:54]} 2. Nf3 {[%emt 0:00:09]} e6 {[%emt 0:00:17]} 3. g3 {[%emt 0:00:23]} b6 {[%emt 0:00:08]} 4. Bg2 {[%emt 0:00:16]} Bb7 {[%emt 0:00:06]} 5. c4 {[%emt 0:01:05]} Bb4+ {[%emt 0:00:41]} 6. Bd2 {[%emt 0:00:10]} a5 {[%emt 0:00:08]} 7. O-O {[%emt 0:00:10]} O-O {[%emt 0:00:07]} 8. Bf4 {[%emt 0:01:17]} Be7 {[%emt 0:00:46]} 9. Nc3 {[%emt 0:00:35]} Ne4 {[%emt 0:00:13]} 10. Rc1 {[%emt 0:00:59]} Na6 {[%emt 0:07:28]} 11. Nxe4 {[%emt 0:01:24]} Bxe4 {[%emt 0:00:08]} 12. Ne5 {[%emt 0:00:21]} Bxg2 {[%emt 0:00:09]} 13. Kxg2 {[%emt 0:00:03]} Qc8 {[%emt 0:01:40]} 14. Kg1 {[%emt 0:12:52]} Rd8 {[%emt 0:00:41]} 15. e4 {[%emt 0:05:58]} Qb7 {[%emt 0:00:44]} 16. Qh5 {[%emt 0:04:48]} g6 {[%emt 0:00:42]} 17. Qf3 {[%emt 0:01:43]} f6 {[%emt 0:02:44]} 18. Nd3 {[%emt 0:10:45]} Rf8 {[%emt 0:04:42]} 19. Rfe1 {[%emt 0:03:58]} Rf7 {[%emt 0:01:41]} 20. a3 {[%emt 0:02:11]} d6 {[%emt 0:00:52]} 21. Qg4 {[%emt 0:08:00]} e5 {[%emt 0:00:43]} 22. Be3 {[%emt 0:03:14]} a4 {[%emt 0:00:38]} 23. h4 {[%emt 0:02:27]} Qc8 {[%emt 0:00:43]} 24. Qxc8+ {[%emt 0:04:28]} Rxc8 {[%emt 0:00:08]} 25. Nb4 {[%emt 0:02:27]} Nb8 {[%emt 0:04:38]} 26. c5 {[%emt 0:06:14]} exd4 {[%emt 0:00:26]} 27. cxd6 {[%emt 0:00:11]} dxe3 {[%emt 0:00:06]} 28. dxe7 {[%emt 0:00:46]} exf2+ {[%emt 0:00:23]} 29. Kxf2 {[%emt 0:00:01]} Rxe7 {[%emt 0:03:40]} 30. Nd5 {[%emt 0:00:10]} Re6 {[%emt 0:01:46]} 31. Nxc7 {[%emt 0:00:31]} Rd6 {[%emt 0:00:47]} 32. Nd5 {[%emt 0:01:18]} Re8 {[%emt 0:00:27]} 33. Red1 {[%emt 0:03:22]} Kf7 {[%emt 0:01:19]} 34. Rc7+ {[%emt 0:04:33]} Rd7 {[%emt 0:00:22]} 35. Rdc1 {[%emt 0:01:42]} Rxe4 {[%emt 0:03:20]} 36. Nxb6 {[%emt 0:02:18]} Rxc7 {[%emt 0:02:50]} 37. Rxc7+ {[%emt 0:00:03]} Ke6 {[%emt 0:00:11]} 38. Rc8 {[%emt 0:01:54]} Na6 {[%emt 0:04:38]} 39. Re8+ {[%emt 0:01:22]} Kf5 {[%emt 0:00:08]} 40. Rxe4 {[%emt 0:00:06]} Kxe4 {[%emt 0:00:06]} 41. Nxa4 {[%emt 0:00:03]} h5 {[%emt 0:00:20]} 42. b4 {[%emt 0:00:31]} Nc7 {[%emt 0:00:09]} 43. Nc5+ {[%emt 0:00:46]} Kd4 {[%emt 0:00:34]} 44. Nd7 {[%emt 0:00:27]} Ke4 {[%emt 0:58:47]} 1-0